bitfinex/quotes_BTCUSD_20251011
["timestamp","ask_amount","ask_price","bid_price","bid_amount"]
[1760219008143,0.88214556,111060.0,111050.0,0.07140283]
[1760219008320,0.88214556,111060.0,111050.0,0.07190286]
[1760219008526,0.88214556,111060.0,111050.0,0.07290286]
[1760219009208,0.9708649,111060.0,111050.0,0.00385287]
[1760219009406,1.58233005,111060.0,111050.0,0.00385287]
[1760219009945,1.59920636,111060.0,111050.0,0.00385287]
[1760219010319,1.57399286,111060.0,111050.0,0.00385287]
[1760219010493,1.59920636,111060.0,111050.0,0.00385287]
[1760219010694,1.6879257,111060.0,111050.0,0.00385287]
[1760219010960,1.6879257,111060.0,111050.0,0.00285287]
[1760219011142,1.6627122,111060.0,111050.0,0.00285287]
[1760219011350,6.2231937,111060.0,111050.0,1e-08]
[1760219011502,6.24506068,111060.0,111050.0,1e-08]
[1760219011913,6.26937005,111060.0,111050.0,1e-08]
[1760219012270,6.24515655,111060.0,111050.0,1e-08]
[1760219012415,6.24615655,111060.0,111050.0,1e-08]
[1760219013448,6.28399655,111060.0,111050.0,1e-08]
[1760219013825,6.30339195,111060.0,111050.0,1e-08]
[1760219015748,6.32860545,111060.0,111050.0,1e-08]
[1760219016773,6.30339195,111060.0,111050.0,1e-08]
[1760219017168,6.33566776,111060.0,111050.0,1e-08]
[1760219017819,6.36088126,111060.0,111050.0,1e-08]
[1760219019756,6.33657189,111060.0,111050.0,1e-08]
[1760219020334,6.33649856,111060.0,111050.0,1e-08]
[1760219021126,6.38493144,111060.0,111050.0,1e-08]
[1760219021328,6.38491384,111060.0,111050.0,1e-08]
[1760219021533,6.38491372,111060.0,111050.0,1e-08]
[1760219022431,6.41506562,111060.0,111050.0,1e-08]
[1760219022634,0.18014772,111020.0,111010.0,0.07162362]
[1760219022874,0.18014772,111020.0,111000.0,0.0004]
[1760219022875,0.18016394,111010.0,111000.0,0.0004]
[1760219023100,0.85513493,111010.0,111000.0,0.0004]
[1760219023249,0.88223966,111010.0,111000.0,0.0004]
[1760219023446,0.88223966,111010.0,111000.0,0.00334292]
[1760219024025,0.88223966,111010.0,111000.0,0.00434292]
[1760219024230,0.88223966,111010.0,111000.0,1e-08]
[1760219024480,0.89150123,111010.0,111000.0,1e-08]
[1760219024642,0.91671473,111010.0,111000.0,1e-08]
[1760219025074,5.82309379,111010.0,111000.0,1e-08]
[1760219025331,0.18019641,110990.0,110980.0,0.0004]
[1760219025458,0.89120643,110990.0,110980.0,0.0004]
[1760219025663,0.18021265,110980.0,110970.0,0.0004]
[1760219025865,0.85518364,110980.0,110970.0,0.0004]
[1760219026148,0.18022889,110970.0,110960.0,0.0004]
[1760219026336,0.85519988,110970.0,110960.0,0.02751338]
[1760219026546,0.94391922,110970.0,110960.0,0.0004]
[1760219026904,0.94396912,110970.0,110960.0,0.0004]
[1760219027111,1.61894011,110970.0,110960.0,1e-08]
[1760219027280,1.68214496,110970.0,110960.0,1e-08]
[1760219029000,1.68314496,110970.0,110960.0,1e-08]
[1760219029368,1.59442562,110970.0,110960.0,1e-08]
[1760219030810,0.24448364,110970.0,110960.0,1e-08]
[1760219031037,0.22516583,110970.0,110960.0,1e-08]
[1760219031245,0.22516583,110970.0,110960.0,0.00235572]
[1760219031446,0.22416583,110970.0,110960.0,0.00235572]
[1760219031826,0.98885616,110970.0,110960.0,0.00235572]
[1760219032187,0.22516583,110970.0,110960.0,0.08077572]
[1760219032394,0.22416583,110970.0,110960.0,0.08077572]
[1760219032612,0.22516583,110970.0,110960.0,0.08077572]
[1760219032822,0.90013682,110970.0,110960.0,0.08077572]
[1760219033048,0.91941524,110970.0,110960.0,0.08077572]
[1760219033249,1.00813458,110970.0,110960.0,0.08077572]
[1760219033670,0.24444425,110970.0,110960.0,0.07577572]
[1760219034037,0.22516583,110970.0,110960.0,0.07577572]
[1760219034354,0.18024513,110960.0,110950.0,0.77566099]
[1760219034595,0.18024513,110960.0,110950.0,0.14434]
[1760219034791,0.18024513,110960.0,110950.0,0.81931099]
[1760219035611,0.20736145,110960.0,110950.0,0.81931099]
[1760219036777,0.22411123,110960.0,110950.0,0.81931099]
[1760219036979,0.19699491,110960.0,110950.0,0.81931099]
[1760219039799,0.19699491,110960.0,110950.0,0.75379099]
[1760219040007,0.19699491,110960.0,110950.0,0.81990008]
[1760219040232,0.19701259,110960.0,110950.0,0.07940909]
[1760219040438,0.19701259,110960.0,110950.0,0.81990008]
[1760219042712,0.19701259,110960.0,110950.0,0.07940909]
[1760219042937,0.19701259,110960.0,110950.0,0.75438008]
[1760219043716,0.19701259,110960.0,110950.0,0.00098909]
[1760219043925,0.9030035,110960.0,110950.0,0.00098909]
[1760219044124,0.94647523,110960.0,110950.0,0.00098909]
[1760219044361,1.28647523,110960.0,110950.0,0.00098909]
[1760219044569,1.29457957,110960.0,110950.0,0.00098909]
[1760219044766,0.61960858,110960.0,110950.0,0.00098909]
[1760219045181,1.29457957,110960.0,110950.0,0.00098909]
[1760219045387,1.34301245,110960.0,110950.0,0.00098909]
[1760219048176,1.31075715,110960.0,110950.0,0.00098909]
[1760219049588,1.23729638,110960.0,110950.0,0.00098909]
[1760219049976,1.23729638,110960.0,110950.0,1e-08]
[1760219050382,1.23729638,110960.0,110910.0,1.66287523]
[1760219050383,0.18031013,110920.0,110910.0,1.66287523]
[1760219050605,0.18031013,110920.0,110910.0,1.09007022]
[1760219050606,0.19707759,110920.0,110910.0,1.09007022]
[1760219051674,0.19707759,110920.0,110910.0,1.09057244]
[1760219051908,0.19707759,110920.0,110910.0,1.09257244]
[1760219052350,0.19707759,110920.0,110910.0,0.49106222]
[1760219052595,0.19707759,110920.0,110910.0,1.02337244]
[1760219052806,0.19707759,110920.0,110910.0,0.08186222]
[1760219052993,0.21639836,110920.0,110910.0,0.03716222]
[1760219053419,0.21639836,110920.0,110910.0,0.00350222]
[1760219053643,0.26171878,110920.0,110910.0,0.00350222]
[1760219054124,0.21639836,110920.0,110910.0,0.00350222]
[1760219054329,0.24061778,110920.0,110910.0,0.00350222]
[1760219056289,0.24061778,110920.0,110910.0,0.00585952]
[1760219056527,0.24061778,110920.0,110910.0,0.05055952]
[1760219056743,0.24061778,110920.0,110910.0,0.08421952]
[1760219057522,0.24061778,110920.0,110910.0,0.00385952]
[1760219057859,0.24061778,110920.0,110910.0,0.04855952]
[1760219057988,0.24061778,110920.0,110910.0,0.04955952]
[1760219058188,0.24061778,110920.0,110910.0,0.00485952]
[1760219058608,0.24061778,110920.0,110910.0,0.00385952]
[1760219059410,0.29078149,110920.0,110910.0,0.00385952]
[1760219059998,0.32307405,110920.0,110910.0,0.00385952]
[1760219062873,0.27291034,110920.0,110910.0,0.00385952]
[1760219063444,0.24869092,110920.0,110910.0,0.00385952]
[1760219063645,0.2971238,110920.0,110910.0,0.00385952]
[1760219064051,5.42960435,110920.0,110910.0,1e-08]
[1760219064495,0.18035891,110890.0,110880.0,0.03366]
[1760219064723,0.21644714,110890.0,110880.0,0.07851023]
[1760219064925,0.21644714,110890.0,110880.0,0.08027901]
[1760219065269,0.24072076,110890.0,110880.0,0.00191901]
[1760219066073,1.25557007,110890.0,110880.0,0.00291901]
[1760219066306,1.2518488,110890.0,110880.0,0.00291901]
[1760219066503,1.2518488,110890.0,110880.0,0.00191901]
[1760219066888,1.27984369,110890.0,110880.0,0.00191901]
[1760219067090,1.27984369,110890.0,110880.0,0.00291901]
[1760219067304,1.27984924,110890.0,110880.0,0.00191901]
[1760219067623,1.25324034,110890.0,110880.0,1e-08]
[1760219068502,5.44850834,110890.0,110880.0,1e-08]
[1760219068843,5.44850834,110890.0,110850.0,0.0004]
[1760219068844,0.18040772,110860.0,110850.0,0.0004]
[1760219069051,0.19725209,110860.0,110850.0,0.00049041]
[1760219069608,0.19725209,110860.0,110850.0,0.04519041]
[1760219069792,0.19725209,110860.0,110850.0,0.00049041]
[1760219069994,0.19725209,110860.0,110850.0,0.04619041]
[1760219070161,0.19725209,110860.0,110850.0,0.08085041]
[1760219070437,0.18040772,110860.0,110850.0,0.15105041]
[1760219070570,0.1972235,110860.0,110850.0,0.08085041]
[1760219070969,0.18040772,110860.0,110850.0,0.08085041]
[1760219071461,0.1972235,110860.0,110850.0,0.08085041]
[1760219071877,0.18040772,110860.0,110850.0,0.08085041]
[1760219072076,0.19722585,110860.0,110850.0,0.08085041]
[1760219072600,0.19722585,110860.0,110850.0,0.68236063]
[1760219072801,0.18040772,110860.0,110850.0,0.92783462]
[1760219073001,0.18040517,110870.0,110850.0,0.92783462]
[1760219073261,0.18040517,110870.0,110860.0,0.71782099]
[1760219073488,0.18040517,110870.0,110860.0,0.74542022]
[1760219074652,0.18942037,110880.0,110860.0,0.92582794]
[1760219074855,0.20623423,110880.0,110870.0,0.69978022]
[1760219075064,0.20623423,110880.0,110870.0,0.74542022]
[1760219075429,0.20623423,110880.0,110870.0,0.14391]
[1760219075656,0.20623423,110880.0,110870.0,0.74542022]
[1760219075858,0.00096919,110890.0,110880.0,0.18037518]
[1760219076064,0.00096919,110890.0,110880.0,0.9257954]
[1760219076522,0.00096919,110890.0,110880.0,1.89745752]
[1760219077876,0.00096919,110890.0,110880.0,1.89845752]
[1760219079890,0.00096919,110890.0,110880.0,1.89945752]
[1760219081780,0.01266544,110910.0,110900.0,0.60151022]
[1760219082036,0.19302924,110910.0,110900.0,0.14391]
[1760219082246,0.1803638,110910.0,110900.0,0.74542022]
[1760219083117,0.18938011,110910.0,110900.0,0.74551063]
[1760219083881,0.18938011,110910.0,110900.0,0.14400041]
[1760219084118,0.18938011,110910.0,110900.0,0.74551063]
[1760219087386,0.18938011,110910.0,110900.0,0.14400041]
[1760219087598,0.18938011,110910.0,110900.0,0.74551063]
[1760219089770,0.18938011,110910.0,110900.0,0.92585328]
[1760219089976,0.18032639,110910.0,110900.0,0.92585328]
[1760219090772,0.18150533,110910.0,110900.0,0.92585328]
[1760219090972,0.18150533,110910.0,110900.0,0.92685328]
[1760219091430,0.18150533,110910.0,110900.0,0.92785328]
[1760219092550,0.00117894,110910.0,110900.0,1.29800518]
[1760219092748,0.00117894,110910.0,110900.0,1.8995154]
[1760219096182,0.00117894,110910.0,110900.0,2.02663159]
[1760219096778,0.00117894,110910.0,110900.0,2.02563159]
[1760219097169,0.00117894,110910.0,110900.0,2.02663159]
[1760219097625,0.00117894,110910.0,110900.0,2.02463159]
[1760219098064,0.00117894,110910.0,110900.0,2.02663159]
[1760219098958,0.00117894,110910.0,110900.0,2.02863159]
[1760219099896,0.00117894,110910.0,110900.0,1.9286316]
[1760219100096,0.00117894,110910.0,110900.0,2.02863159]
[1760219100912,0.00117894,110910.0,110900.0,0.82561115]
[1760219101125,0.00117894,110910.0,110900.0,2.02863159]
[1760219101752,0.00117894,110910.0,110900.0,1.9286316]
[1760219101956,0.00117894,110910.0,110900.0,2.02863159]
[1760219102576,0.00117894,110910.0,110900.0,1.9286316]
[1760219102743,0.00117894,110910.0,110900.0,2.02863159]
[1760219102946,0.00117894,110910.0,110900.0,1.9286316]
[1760219103143,0.00117894,110910.0,110900.0,2.02863159]
[1760219103348,0.00117894,110910.0,110900.0,1.9286316]
[1760219103956,0.00117894,110910.0,110900.0,2.02863159]
[1760219104354,0.00117894,110910.0,110900.0,2.29733159]
[1760219111491,0.00117894,110910.0,110900.0,3.12314545]
[1760219112109,0.26099179,110950.0,110940.0,0.55042952]
[1760219112110,0.07162362,110950.0,110940.0,0.55042952]
[1760219112310,0.07162362,110950.0,110940.0,1.37410762]
[1760219112515,0.18931577,110970.0,110950.0,0.18024709]
[1760219112763,0.30921296,110980.0,110960.0,0.34566964]
[1760219112947,0.18022889,110970.0,110960.0,0.25855513]
[1760219113121,0.18022889,110970.0,110960.0,0.32764513]
[1760219113321,0.1807284,110970.0,110960.0,0.1474]
[1760219113540,0.1807284,110970.0,110960.0,0.16542451]
[1760219113907,0.1807284,110970.0,110960.0,1.51798071]
[1760219114127,0.1807284,110970.0,110960.0,1.68120133]
[1760219114820,0.00049951,110970.0,110960.0,1.68120133]
[1760219115027,0.1807284,110970.0,110960.0,1.68120133]
[1760219115227,0.1807284,110970.0,110960.0,0.32864513]
[1760219115429,0.1807284,110970.0,110960.0,1.68120133]
[1760219116127,0.00049951,110970.0,110960.0,1.68120133]
[1760219116322,0.00049951,110970.0,110960.0,2.05135323]
[1760219117774,0.00049951,110970.0,110960.0,2.72763133]
[1760219118125,0.00403409,110970.0,110960.0,2.72763133]
[1760219118335,0.00403409,110970.0,110960.0,2.72863133]
[1760219118666,0.00403409,110970.0,110960.0,2.72763133]
[1760219118820,0.00403409,110970.0,110960.0,2.72663133]
[1760219119657,0.00403409,110970.0,110960.0,2.05035323]
[1760219119828,0.00403409,110970.0,110960.0,2.05135323]
[1760219120375,0.00403409,110970.0,110960.0,2.72863133]
[1760219120960,0.21356092,111030.0,111000.0,0.55934108]
[1760219121173,0.09703943,111030.0,111020.0,0.93473582]
[1760219121321,0.02541581,111030.0,111020.0,1.00382582]
[1760219121523,0.00860527,111030.0,111020.0,1.68010392]
[1760219121724,0.18033149,111030.0,111020.0,1.68010392]
[1760219121971,0.02541581,111030.0,111020.0,1.68010392]
[1760219122169,0.0002,111030.0,111020.0,1.68010392]
[1760219122516,0.0002,111030.0,111020.0,2.05025582]
[1760219123690,0.0002,111030.0,111020.0,2.05125582]
[1760219123890,0.0002,111030.0,111020.0,2.05225582]
[1760219127083,0.0002,111030.0,111020.0,2.72848492]
[1760219127510,0.0002,111030.0,111020.0,2.73748906]
[1760219129529,0.0002,111030.0,111020.0,1.34774694]
[1760219131668,0.00373171,111030.0,111020.0,1.34774694]
[1760219132447,0.00373171,111030.0,111020.0,1.43727646]
[1760219134640,0.00373171,111030.0,111020.0,1.46227646]
[1760219135645,0.00373171,111030.0,111020.0,1.46427646]
[1760219139126,0.00373171,111030.0,111020.0,1.31959504]
[1760219139451,0.00373171,111030.0,111020.0,1.3407428]
[1760219140199,0.00373171,111030.0,111020.0,1.3105909]
[1760219140398,0.00373171,111030.0,111020.0,1.3407428]
[1760219140754,0.00373171,111030.0,111020.0,1.3105909]
[1760219141147,0.00373171,111030.0,111020.0,1.3407428]
[1760219142700,0.00373171,111030.0,111020.0,0.70165062]
[1760219142880,0.00373171,111030.0,111020.0,1.3407428]
[1760219143074,0.18009386,111060.0,111030.0,0.55028339]
[1760219143282,0.18910773,111050.0,111040.0,0.10015]
[1760219143478,0.18910773,111050.0,111040.0,0.14359]
[1760219143895,0.19028444,111050.0,111040.0,0.78268218]
[1760219144227,0.00117671,111050.0,111040.0,1.33294935]
[1760219144427,0.00117671,111050.0,111040.0,1.33303976]
[1760219145255,0.00117671,111050.0,111040.0,1.33403976]
[1760219145475,0.00117671,111050.0,111040.0,1.33503976]
[1760219146184,0.1801077,111070.0,111060.0,0.63909218]
[1760219146390,0.19689248,111070.0,111060.0,0.1411]
[1760219147054,0.20589581,111070.0,111060.0,0.1411]
[1760219147649,0.18911103,111070.0,111060.0,0.32118283]
[1760219147846,0.18911103,111070.0,111060.0,0.1411]
[1760219148405,0.20592323,111070.0,111060.0,0.1411]
[1760219149445,0.20592323,111070.0,111060.0,0.81599828]
[1760219150087,0.20592323,111070.0,111060.0,0.1411]
[1760219150287,0.20592323,111070.0,111060.0,0.81599828]
[1760219151314,0.225229,111070.0,111060.0,0.81599828]
[1760219151713,0.22640539,111070.0,111060.0,0.81599828]
[1760219155949,0.25046926,111070.0,111060.0,0.77599828]
[1760219156403,0.21740206,111070.0,111060.0,0.77599828]
[1760219156965,0.22640539,111070.0,111060.0,0.77599828]
[1760219158003,0.23484532,111070.0,111060.0,0.77599828]
[1760219162359,0.19755096,111070.0,111060.0,0.77599828]
[1760219163398,0.00843993,111070.0,111060.0,2.00113129]
[1760219168303,0.00900171,111090.0,111080.0,0.18005041]
[1760219168470,0.00842864,111090.0,111080.0,0.99744869]
[1760219168909,0.00960471,111090.0,111080.0,0.99744869]
[1760219169454,0.19113903,111090.0,111080.0,0.99744869]
[1760219169859,0.01010483,111090.0,111080.0,0.99744869]
[1760219170292,0.01110483,111090.0,111080.0,0.99744869]
[1760219170664,0.01010483,111090.0,111080.0,0.99744869]
[1760219171296,0.01010483,111090.0,111080.0,1.70249887]
[1760219171509,0.00167619,111090.0,111080.0,1.70249887]
[1760219171734,0.00167619,111090.0,111080.0,1.70229887]
[1760219172826,0.00167619,111090.0,111080.0,2.04229887]
[1760219173060,0.00167619,111090.0,111080.0,2.15682839]
[1760219173460,0.00167619,111090.0,111080.0,2.18089226]
[1760219173667,0.00842864,111130.0,111120.0,0.1799856]
[1760219173921,0.0002,111150.0,111140.0,0.21010511]
[1760219174145,0.0002,111170.0,111160.0,0.21007273]
[1760219174362,0.0003502,111170.0,111160.0,1.89108825]
[1760219174786,0.0002,111180.0,111170.0,0.55005655]
[1760219174990,0.0002,111200.0,111190.0,0.55002419]
[1760219175230,0.0002,111200.0,111190.0,1.29178195]
[1760219175428,0.17987229,111190.0,111180.0,0.03288]
[1760219175656,0.17987229,111190.0,111180.0,0.07508]
[1760219175884,0.17987229,111190.0,111180.0,0.1425]
[1760219176107,0.17988846,111180.0,111170.0,0.37388]
[1760219176343,0.17988846,111180.0,111170.0,0.07508]
[1760219176807,0.17988846,111180.0,111170.0,0.03288]
[1760219177007,0.17988846,111180.0,111170.0,0.07508]
[1760219177630,0.17988846,111180.0,111170.0,0.07608]
[1760219178084,0.17988846,111180.0,111170.0,0.1435]
[1760219178324,0.17988846,111180.0,111170.0,0.1445]
[1760219178527,0.17987229,111190.0,111170.0,1.23600866]
[1760219178732,0.17987229,111190.0,111180.0,0.1003]
[1760219178978,0.17987229,111190.0,111180.0,0.1425]
[1760219179821,0.17987229,111190.0,111180.0,0.16048884]
[1760219180240,0.18574684,111190.0,111180.0,0.16048884]
[1760219180910,0.00587455,111190.0,111180.0,0.16048884]
[1760219181116,0.00587455,111190.0,111180.0,0.1425]
[1760219181328,0.18574684,111190.0,111180.0,0.1435]
[1760219184200,0.18574684,111190.0,111180.0,0.16148884]
[1760219184416,0.00587455,111190.0,111180.0,1.24715467]
[1760219185049,0.00587455,111190.0,111180.0,1.58715467]
[1760219186846,0.00587455,111190.0,111180.0,1.67668419]
[1760219187051,0.00587455,111190.0,111180.0,1.77668418]
[1760219187673,0.00587455,111190.0,111180.0,1.77568418]
[1760219187875,0.00587455,111190.0,111180.0,1.77668418]
[1760219188306,0.00587455,111190.0,111180.0,1.80268418]
[1760219188512,0.00587455,111190.0,111180.0,1.80168418]
[1760219188713,0.00587455,111190.0,111180.0,1.80368418]
[1760219192587,0.0002,111200.0,111190.0,0.67502418]
[1760219192771,0.0002,111200.0,111190.0,1.75621801]
[1760219193052,0.0002,111200.0,111190.0,1.80121801]
[1760219193704,0.0002,111200.0,111190.0,1.80221801]
[1760219193909,0.0002,111200.0,111190.0,1.80321801]
[1760219194115,0.0002,111200.0,111190.0,1.80682324]
[1760219194523,0.0002,111200.0,111190.0,1.80582324]
[1760219194729,0.0002,111200.0,111190.0,1.80482324]
[1760219194931,0.0002,111200.0,111190.0,1.80682324]
[1760219195142,0.0002,111200.0,111190.0,1.80882324]
[1760219195769,0.13100326,111250.0,111230.0,1.07342191]
[1760219195976,0.00050087,111240.0,111230.0,0.2427795]
[1760219196187,0.00050087,111240.0,111230.0,0.2877795]
[1760219196388,0.00050087,111240.0,111230.0,1.18139381]
[1760219196592,0.00050087,111240.0,111230.0,1.24662381]
[1760219198458,0.0034355,111240.0,111230.0,1.24662381]
[1760219198864,0.17821091,111250.0,111230.0,1.24662381]
[1760219199070,0.17836107,111250.0,111240.0,0.09805]
[1760219199274,0.17836107,111250.0,111240.0,0.14305]
[1760219199454,0.17836107,111250.0,111240.0,0.74103446]
[1760219200329,0.18669876,111250.0,111240.0,0.74103446]
[1760219201027,0.18669876,111250.0,111240.0,0.67580446]
[1760219201317,0.17979144,111240.0,111230.0,0.69603446]
[1760219201515,0.17979144,111240.0,111230.0,0.74103446]
[1760219201931,0.17979144,111240.0,111230.0,0.07782]
[1760219202158,0.18815291,111240.0,111230.0,0.67580446]
[1760219202367,0.18815291,111240.0,111230.0,0.74103446]
[1760219202608,0.18815291,111240.0,111230.0,0.67580446]
[1760219202849,0.18815291,111240.0,111230.0,0.74365446]
[1760219203065,0.18815291,111240.0,111230.0,0.14567]
[1760219203280,0.18815291,111240.0,111230.0,0.73913908]
[1760219203942,0.18815291,111240.0,111230.0,0.67128908]
[1760219204163,0.18815291,111240.0,111230.0,0.73913908]
[1760219204623,0.18815291,111240.0,111230.0,0.74010434]
[1760219206936,0.18817225,111240.0,111230.0,0.74010434]
[1760219208069,0.18817225,111240.0,111230.0,0.14211988]
[1760219208291,0.18817225,111240.0,111230.0,0.74010434]
[1760219209158,0.18817225,111240.0,111230.0,0.67225434]
[1760219209590,0.18817225,111240.0,111230.0,0.07426988]
[1760219209801,0.18817225,111240.0,111230.0,0.67225434]
[1760219210020,0.18817225,111240.0,111230.0,0.74010434]
[1760219210448,0.18817225,111240.0,111230.0,0.67225434]
[1760219211526,0.18817225,111240.0,111230.0,0.74010434]
[1760219212030,0.18817225,111240.0,111230.0,0.14211988]
[1760219215694,0.18817225,111240.0,111230.0,0.07426988]
[1760219216662,0.18817225,111240.0,111230.0,0.14211988]
[1760219218032,0.18817225,111240.0,111230.0,0.07426988]
[1760219218520,0.18817225,111240.0,111230.0,0.14211988]
[1760219219465,0.18817225,111240.0,111230.0,0.07426988]
[1760219219956,0.18817225,111240.0,111230.0,0.14211988]
[1760219223536,0.18817225,111240.0,111230.0,0.00096526]
[1760219223781,0.22920857,111240.0,111230.0,0.00096526]
[1760219223987,0.18317225,111240.0,111230.0,0.04594526]
[1760219224216,0.18317225,111240.0,111230.0,0.07683526]
[1760219225403,0.18317225,111240.0,111230.0,0.00096526]
[1760219225616,0.18317225,111240.0,111230.0,0.04594526]
[1760219225854,0.18317225,111240.0,111230.0,0.07683526]
[1760219227863,0.18317225,111240.0,111230.0,0.00096526]
[1760219228422,0.20003262,111240.0,111230.0,0.00096526]
[1760219229904,0.20003262,111240.0,111230.0,0.07683526]
[1760219230160,0.20003262,111240.0,111230.0,0.00096526]
[1760219230402,0.18317225,111240.0,111230.0,0.00096526]
[1760219230657,0.1832228,111240.0,111230.0,0.00096526]
[1760219235640,0.85636746,111240.0,111230.0,0.00096526]
[1760219235898,0.87567802,111240.0,111230.0,0.00096526]
[1760219236851,0.20253336,111240.0,111230.0,0.00096526]
[1760219237135,0.85636746,111240.0,111230.0,0.00096526]
[1760219237460,0.19421326,111240.0,111230.0,0.00096526]
[1760219237646,0.8479361,111240.0,111230.0,0.00096526]
[1760219239301,0.93665544,111240.0,111230.0,0.00096526]
[1760219243420,0.8479361,111240.0,111230.0,0.00096526]
[1760219245168,0.17479144,111240.0,111230.0,0.00096526]
[1760219245587,0.8479361,111240.0,111230.0,0.00096526]
[1760219246107,0.8479361,111240.0,111210.0,0.77054466]
[1760219246108,0.17982377,111220.0,111210.0,0.72200992]
[1760219246313,0.17982377,111220.0,111210.0,0.79787992]
[1760219246714,0.17982377,111220.0,111210.0,0.79905391]
[1760219248110,0.17982377,111220.0,111210.0,0.80005391]
[1760219248264,0.17982377,111220.0,111210.0,0.80105391]
[1760219249729,0.17982377,111220.0,111210.0,0.79794311]
[1760219251064,0.20070377,111220.0,111210.0,0.79794311]
[1760219259613,0.24212377,111220.0,111210.0,0.79794311]
[1760219259833,0.24212377,111220.0,111210.0,0.79467342]
[1760219260248,0.20070377,111220.0,111210.0,0.79467342]
[1760219261659,0.20070377,111220.0,111210.0,0.12152876]
[1760219261852,0.20070377,111220.0,111210.0,0.79467342]
[1760219263445,0.24106377,111220.0,111210.0,0.81274865]
[1760219263849,0.20070377,111220.0,111210.0,0.81274865]
[1760219265445,0.24106377,111220.0,111210.0,0.07904399]
[1760219265658,0.28721527,111220.0,111210.0,0.07904399]
[1760219265865,0.28721527,111220.0,111210.0,0.81274865]
[1760219266074,0.20070377,111220.0,111210.0,0.81274865]
[1760219266280,0.24106377,111220.0,111210.0,0.81274865]
[1760219266492,0.24106377,111220.0,111210.0,0.13960399]
[1760219266700,0.20070377,111220.0,111210.0,0.13960399]
[1760219266921,0.24106377,111220.0,111210.0,0.75218865]
[1760219267366,0.20070377,111220.0,111210.0,0.81274865]
[1760219267819,0.24106377,111220.0,111210.0,0.75218865]
[1760219268030,0.20070377,111220.0,111210.0,0.81274865]
[1760219268480,0.24106377,111220.0,111210.0,0.07904399]
[1760219268690,0.24106377,111220.0,111210.0,0.81274865]
[1760219269384,0.24347377,111220.0,111210.0,0.13960399]
[1760219269594,0.24347377,111220.0,111210.0,0.81274865]
[1760219270885,0.24347377,111220.0,111210.0,0.13960399]
[1760219271085,0.27288632,111220.0,111210.0,0.81274865]
[1760219271498,0.24347377,111220.0,111210.0,0.81274865]
[1760219272659,0.24347377,111220.0,111210.0,0.75218865]
[1760219272816,0.24347377,111220.0,111210.0,0.81274865]
[1760219273077,0.20311377,111220.0,111210.0,0.81274865]
[1760219273790,0.17982377,111220.0,111210.0,0.81274865]
[1760219274472,0.21141377,111220.0,111210.0,0.81274865]
[1760219275125,0.17982377,111220.0,111210.0,0.81274865]
[1760219278153,0.17982377,111220.0,111210.0,0.83979601]
[1760219280509,0.17982377,111220.0,111210.0,0.33070286]
[1760219280742,0.17982377,111220.0,111210.0,1.65442985]
[1760219280743,0.19544377,111220.0,111210.0,1.65442985]
[1760219280945,0.19544377,111220.0,111210.0,1.68649985]
[1760219281147,0.17982377,111220.0,111210.0,0.83351525]
[1760219282655,0.24428377,111220.0,111210.0,0.77295525]
[1760219282866,0.20238377,111220.0,111210.0,0.77295525]
[1760219283133,0.20238377,111220.0,111210.0,0.83381525]
[1760219283348,0.24428377,111220.0,111210.0,0.83381525]
[1760219283840,0.20238377,111220.0,111210.0,0.83381525]
[1760219284954,0.22209679,111230.0,111210.0,0.83381525]
[1760219285162,0.17982377,111220.0,111210.0,0.1594966]
[1760219285799,0.17982377,111220.0,111210.0,0.1584966]
[1760219286259,0.17982377,111220.0,111210.0,0.16067059]
[1760219286473,0.17982377,111220.0,111210.0,0.83381525]
[1760219286895,0.17982377,111220.0,111210.0,0.83281525]
[1760219287116,0.17982377,111220.0,111210.0,0.83381525]
[1760219287347,0.17982377,111220.0,111210.0,0.83281525]
[1760219287573,0.17982377,111220.0,111210.0,0.83181525]
[1760219287791,0.17982377,111220.0,111210.0,0.83281525]
[1760219288005,0.17982377,111220.0,111210.0,0.83381525]
[1760219291550,0.17982377,111220.0,111210.0,0.80676789]
[1760219293627,0.17982377,111220.0,111210.0,0.75726789]
[1760219293830,0.17982377,111220.0,111210.0,0.79846789]
[1760219297565,0.17982377,111220.0,111210.0,0.62393425]
[1760219300061,0.17982377,111220.0,111210.0,0.12532323]
[1760219304527,0.17982377,111220.0,111210.0,0.30516317]
[1760219309350,0.18548949,111230.0,111210.0,0.30516317]
[1760219309513,0.17982377,111220.0,111210.0,0.24312918]
[1760219309715,0.18975916,111240.0,111220.0,0.18041071]
[1760219309975,0.18975916,111240.0,111220.0,0.70928173]
[1760219309976,0.1798076,111230.0,111220.0,0.70928173]
[1760219310115,0.1798076,111230.0,111220.0,0.75048173]
[1760219310519,0.1798076,111230.0,111220.0,0.81134173]
[1760219310743,0.18975916,111240.0,111220.0,0.81134173]
[1760219310967,0.18975916,111240.0,111230.0,0.09112]
[1760219311143,0.18975916,111240.0,111230.0,0.13232]
[1760219320531,0.1798076,111230.0,111220.0,0.09138694]
[1760219320668,0.2409376,111230.0,111220.0,0.13227694]
[1760219320874,0.2409376,111230.0,111220.0,0.07173694]
[1760219321382,0.2409376,111230.0,111220.0,0.13163694]
[1760219321694,0.2409376,111230.0,111220.0,0.63024796]
[1760219321898,0.2409376,111230.0,111220.0,0.63224796]
[1760219322935,0.2409376,111230.0,111220.0,0.13363694]
[1760219323144,0.1995576,111230.0,111220.0,0.63224796]
[1760219323893,0.1945576,111230.0,111220.0,0.63224796]
[1760219324937,0.2371976,111230.0,111220.0,0.63224796]
[1760219325151,0.2371976,111230.0,111220.0,0.57234796]
[1760219325516,0.2371976,111230.0,111220.0,0.63224796]
[1760219326196,0.1748076,111230.0,111220.0,0.63224796]
[1760219327265,0.1748076,111230.0,111220.0,0.81207173]
[1760219328865,0.1748076,111230.0,111220.0,0.63224796]
[1760219329310,0.1748076,111230.0,111220.0,0.81207173]
[1760219331104,0.20554916,111240.0,111220.0,0.31346071]
[1760219331246,0.20554916,111240.0,111230.0,0.093]
[1760219331657,0.20554916,111240.0,111230.0,0.1346]
[1760219331899,0.24818916,111240.0,111230.0,0.1346]
[1760219332270,0.18975916,111240.0,111230.0,0.1346]
[1760219334267,0.23239916,111240.0,111230.0,0.1346]
[1760219334786,0.18975916,111240.0,111230.0,0.1346]
[1760219335286,0.23239916,111240.0,111230.0,0.1346]
[1760219335482,0.18975916,111240.0,111230.0,0.1346]
[1760219335646,0.23239916,111240.0,111230.0,0.1346]
[1760219335849,0.24818916,111240.0,111230.0,0.1346]
[1760219336203,0.24818916,111240.0,111230.0,0.0747]
[1760219336464,0.24818916,111240.0,111230.0,0.57331102]
[1760219339926,0.24818916,111240.0,111230.0,0.0747]
[1760219340751,0.24818916,111240.0,111230.0,0.63321102]
[1760219341260,0.24818916,111240.0,111230.0,0.57331102]
[1760219342579,0.24593916,111240.0,111230.0,0.57331102]
[1760219342812,0.31068916,111240.0,111230.0,0.57331102]
[1760219343009,0.33464045,111240.0,111230.0,0.57331102]
[1760219343212,0.24593916,111240.0,111230.0,0.57331102]
[1760219345592,0.31068916,111240.0,111230.0,0.0747]